Cogmind - Beta 13 @@@ ROGUE MODE // 2024.04.01 @ 00:06:32 Player: Cmdr.Laserstrahl Result: Destroyed by H-66 Slayer with Heavy Assault Rifle Performance ------------- Evolutions (4) 2000 Regions Visited (6) 1200 Robots Destroyed (123) 615 Value Destroyed (3181) 3181 Prototype IDs (3) 60 Alien Tech Used (0) 0 Bonus (329) 329 TOTAL SCORE: 7385 Bonus ------- High Alert Combat Kills 226 Follower Combat Kills 103 Cogmind --------- Core Integrity 0/850 Matter 224/300 Energy 276/300 System Corruption 4% Temperature Warm (103) Movement Rolling (130) Ox2 Location -6/Factory Parts ------- > --- POWER (2) -------- Angular Momentum Engine > --- PROPULSION (3) --- Compact Wheel > --- UTILITY (8) ------ Advanced Heat Sink Large Storage Unit Improved Signal Interpreter Armor Integrity Analyzer Transmission Jammer Improved Hacking Suite > --- WEAPON (2) ------- Phase Cannon > --- INVENTORY (15) --- Light Angular Momentum Engine Wheel Wheel Large Battery (200) High-capacity Matter Pod (200) Advanced ECM Suite Improved Propulsion Shielding Graphene Brace Improved EM Shotgun Heavy Plasma Cannon Magnetic Acceleration Cannon Magnetic Acceleration Cannon Magnetic Acceleration Cannon Advanced EMP Blaster Rocket Launcher Peak State ------------ > --- POWER ------------ Micro Nuclear Core Light Fission Core > --- PROPULSION ------- Wheel Compact Wheel Cooled Airjet > --- UTILITY ---------- Advanced Heat Sink Large Storage Unit Improved Sensor Array Improved Signal Interpreter Armor Integrity Analyzer Transmission Jammer Reflective Plating Improved Hacking Suite > --- WEAPON ----------- Phase Cannon Magnetic Acceleration Cannon > --- INVENTORY -------- Light Angular Momentum Engine Wheel Wheel Large Battery High-capacity Matter Pod Advanced ECM Suite Improved Propulsion Shielding Graphene Brace Improved EM Shotgun Heavy Plasma Cannon Magnetic Acceleration Cannon Magnetic Acceleration Cannon Magnetic Acceleration Cannon Advanced EMP Blaster Rocket Launcher [Rating: 59] Favorites ----------- Power Reinforced Deuterium Engine Engine Reinforced Deuterium Engine Power Core Nuclear Core Propulsion Armored Treads Treads Armored Treads Wheel Wheel Hover Unit Cooled Airjet Utility Melee Analysis Suite Device Seismic Detector Storage Large Storage Unit Processor Melee Analysis Suite Hackware Improved Hacking Suite Protection Hardened Medium Armor Plating Weapon Heavy Mace Energy Gun Medium Laser Energy Cannon Phase Cannon Ballistic Gun Assault Rifle Ballistic Cannon Light Cannon Launcher Advanced EMP Blaster Impact Weapon Heavy Mace Slashing Weapon Chainsword Build | -11 -10 -9 -9 -8 -7 -6 ------- Run | Yrd Mat Mat Min Mat Fac Fac Slots Evolved 8 | . . 2 . 2 2 2 Power 1 | . . . . . . 1 Propulsion 1 | . . . . 1 . . Utility 6 | . . 2 . 1 2 1 Weapon . | . . . . . . . Parts Attached 121 | 7 2 20 4 44 10 34 Power 18 | 1 . 2 1 5 2 7 Engine 13 | 1 . 2 1 3 2 4 Core 5 | . . . . 2 . 3 Reactor . | . . . . . . . Propulsion 33 | 2 . 3 2 13 3 10 Treads 12 | . . . . 5 3 4 Leg . | . . . . . . . Wheel 20 | 2 . 3 2 8 . 5 Hover 1 | . . . . . . 1 Flight . | . . . . . . . Utility 40 | 2 1 8 1 12 2 14 Device 16 | 1 . 3 . 4 1 7 Storage 3 | 1 1 . . . . 1 Processor 7 | . . 1 . 4 1 1 Hackware 1 | . . . . . . 1 Protection 13 | . . 4 1 4 . 4 Artifact . | . . . . . . . Weapon 30 | 2 1 7 . 14 3 3 Energy Gun 6 | . 1 2 . 3 . . Energy Cannon 1 | . . . . . . 1 Ballistic Gun 7 | 2 . 4 . 1 . . Ballistic Cannon 4 | . . 1 . 1 . 2 Launcher 1 | . . . . 1 . . Special Weapon . | . . . . . . . Impact Weapon 10 | . . . . 8 2 . Slashing Weapon 1 | . . . . . 1 . Piercing Weapon . | . . . . . . . Special Melee Weapon . | . . . . . . . Unidentified Prototypes 3 | . . 1 . 1 . 1 Corrupted Parts 4 | . . . . 3 . 1 System Corruption 17 | . . . . 16 . 1 Parts Lost 33 | . . 2 1 11 . 19 Power 4 | . . . . 1 . 3 Propulsion 10 | . . . . 6 . 4 Utility 16 | . . 2 1 4 . 9 Weapon 3 | . . . . . . 3 Highest Loss Streak 12 | . . 1 1 3 . 12 To Critical Strikes . | . . . . . . . Average Slot Usage (%) 95 | . 100 97 93 95 99 92 Engine 7 | . 14 11 11 6 6 6 Core 2 | . . . . 2 . 5 Treads 10 | . . . . 13 22 13 Wheel 11 | . 28 22 22 12 . 4 Device 7 | . 14 7 4 5 7 8 Storage 8 | . 14 11 11 9 7 5 Processor 19 | . . 11 11 21 30 22 Hackware 1 | . . . . . . 5 Protection 6 | . . 11 11 5 7 4 Energy Gun 1 | . 13 7 . . . . Ballistic Gun 3 | . 14 12 11 1 . . Ballistic Cannon 3 | . . 1 11 2 3 2 Impact Weapon 6 | . . . . 13 11 4 Slashing Weapon 1 | . . . . . . 4 Naked Turns . | . . . . . . . Heaviest Build 69 | 12 28 44 41 51 52 69 Greatest Support 60 | 32 32 32 22 60 60 60 Greatest Overweight (x) 11 | . . 1 1 2 1 11 Average Overweight (x) . | . . . 1 . . . Largest Inventory Capacity 15 | 8 15 15 15 15 15 15 Average Capacity 14 | 7 11 15 15 15 15 14 Most Carried 15 | 6 12 15 15 15 15 15 Average Carried 13 | 4 8 13 14 14 14 14 Final Capacity 15 | 8 15 15 15 15 15 15 Final Carried 15 | 6 12 15 15 15 15 15 Class Distribution -------------------- 34% | Scavenger-Mutant 29% | Gladiator 20% | Mutant 15% | Scavenger-Gladiator Dominant Class ---------------- Mutant | -10/Materials Scavenger-Mutant | -9/Materials Scavenger-Mutant | -9/Mines Gladiator | -8/Materials Scavenger-Gladiator | -7/Factory Gladiator | -6/Factory Resources | -11 -10 -9 -9 -8 -7 -6 ----------- Run | Yrd Mat Mat Min Mat Fac Fac Matter Collected 2663 | 298 156 565 243 652 117 632 Remotely . | . . . . . . . Salvage Created 5395 | 111 172 668 230 2093 186 1935 Parts 187 | 5 9 43 12 71 4 43 Haulers Intercepted 11 | . . 3 . 5 . 3 Recyclers Shooed 10 | 1 . . 2 3 1 3 Parts Field Recycled . | . . . . . . . Retrieved Matter . | . . . . . . . Parts Self-Destructed . | . . . . . . . Prevented . | . . . . . . . Kills | -11 -10 -9 -9 -8 -7 -6 ------- Run | Yrd Mat Mat Min Mat Fac Fac Combat Hostiles Destroyed 76 | . 3 14 7 28 2 22 Melee 19 | . . . . 9 1 9 Guns 21 | . 3 14 3 1 . . Cannons 20 | . . . 4 8 . 8 Classes Destroyed 17 | 2 2 5 2 5 . 1 Worker 10 | . . . 2 5 1 2 Builder 1 | . . . . 1 . . Tunneler 3 | 1 . 1 . 1 . . Hauler 11 | . . 3 . 5 . 3 Recycler 20 | 1 1 1 2 7 1 7 Mechanic 1 | . 1 . . . . . Operator 1 | . . . . 1 . . Watcher 4 | . . 1 . 3 . . Swarmer 26 | . 3 7 3 6 . 7 Grunt 24 | . . 5 . 13 . 6 Duelist 1 | . . 1 . . . . Sentry 10 | . . 1 . 5 1 3 Specialist 2 | . . . . 2 . . Hunter 5 | . . . . 1 1 3 Programmer 3 | . . . . . . 3 Heavy 1 | . . . . 1 . . Assembled 4 | . . . 4 . . . Best Kill Streak 7 | 2 3 7 4 7 2 7 Combat Bots Only 7 | . 3 7 3 5 1 5 Max Kills in Single Turn 2 | 1 1 1 1 2 1 1 Gunslinging . | . . . . . . . Exploded . | . . . . . . . Melee 1 | . . . . 1 1 1 Uniques/NPCs Destroyed . | . . . . . . . Combat | -11 -10 -9 -9 -8 -7 -6 -------- Run | Yrd Mat Mat Min Mat Fac Fac Hostile Shots Fired 749 | . 12 79 22 184 43 409 Missed 192 | . 3 24 8 46 13 98 Damage Taken 7865 | . 62 738 187 2452 270 4156 Core 1459 | . 22 100 72 395 11 859 Absorbed by Shields 288 | . . . . . . 288 Redirected to Shielding 41 | . . 11 . 30 . . Regen/Repaired (Parts) 516 | . . . . . . 516 Core Remaining (%) 74 | 100 91 . 57 28 98 . Volleys Fired 211 | 7 12 61 33 51 1 46 Largest 2 | 2 2 2 2 2 1 2 Hottest 138 | 40 70 79 55 90 44 138 Shots Fired 389 | 14 24 115 64 86 1 85 Gun 236 | 14 24 114 31 53 . . Cannon 153 | . . 1 33 33 1 85 Launcher . | . . . . . . . Special . | . . . . . . . Kinetic 285 | 14 12 71 64 59 1 64 Thermal 77 | . 12 44 . . . 21 Explosive . | . . . . . . . Electromagnetic 27 | . . . . 27 . . Robot Hit Streak 14 | 3 4 11 6 11 5 14 Robot Miss Streak 5 | 2 4 5 4 5 . 5 Penetration Max . | . . . . . . . Secondary Targets 3 | . . 3 . . . . Max Gunslinging Chain 1 | . . 1 . . . . Shots Hit Robots 381 | 9 13 72 31 137 12 107 Core Hits 123 | 3 7 28 14 36 4 31 Critical Kills 4 | . . . . 1 1 2 Critical Parts Destroyed 22 | . . . . 13 . 9 Critical Strikes 37 | . 3 2 . 15 1 16 Burn 5 | . 3 2 . . . . Meltdown 1 | . . . . . . 1 Blast 3 | . . . . 1 . 2 Smash 25 | . . . . 14 1 10 Sever 3 | . . . . . . 3 Melee Attacks 200 | . . . . 107 18 75 Impact 186 | . . . . 107 18 61 Slashing 14 | . . . . . . 14 Piercing . | . . . . . . . Sneak Attacks 30 | . . . . 19 4 7 Combat Hostiles . | . . . . . . . Follow-up Attacks 17 | . . . . 5 1 11 Damage Inflicted 12189 | 88 156 947 446 5527 660 4365 Guns 1926 | 88 156 947 209 526 . . Cannons 2327 | . . . 237 447 25 1618 Explosions 163 | . . . . 70 . 93 Melee 7773 | . . . . 4484 635 2654 Ramming . | . . . . . . . Kinetic 2968 | 88 57 508 446 651 25 1193 Thermal 1060 | . 99 439 . 37 . 485 Explosive 33 | . . . . . . 33 Electromagnetic 355 | . . . . 355 . . Impact 7387 | . . . . 4484 635 2268 Slashing 386 | . . . . . . 386 Piercing . | . . . . . . . Highest Corruption 16 | . . . . 16 . 4 Average Corruption 3 | . . . . 10 . 2 Corruption Purged . | . . . . . . . Corruption Blocked . | . . . . . . . Effects 16 | . . . . 5 . 11 Message Errors 5 | . . . . 2 . 3 Matter Fused 4 | . . . . 2 . 2 Heat Flow Errors 1 | . . . . . . 1 Energy Discharges 1 | . . . . 1 . . Parts Rejected 2 | . . . . . . 2 Data Loss (minor) 1 | . . . . . . 1 Data Loss (major) 1 | . . . . . . 1 Weapon Failures 1 | . . . . . . 1 Overload Shots . | . . . . . . . Overflow Damage 2676 | . . . 1 1562 134 979 Projectiles 108 | . . . 1 . . 107 Explosions . | . . . . . . . Melee 2568 | . . . . 1562 134 872 Knockbacks 38 | . . . 1 14 2 21 Impact 19 | . . . . 10 2 7 Kinetic 14 | . . . 1 3 . 10 Secondary 5 | . . . . 1 . 4 Self-Inflicted Damage 36 | . . . . 36 . . Shots 1 | . . . . 1 . . Rammed . | . . . . . . . Targets Rammed . | . . . . . . . Kicked . | . . . . . . . Crushed . | . . . . . . . Highest Temperature 284 | . 63 257 42 284 6 149 Average Temperature 49 | . 23 49 18 68 4 44 Received Heat Transfer 1762 | . . 117 60 819 30 736 Effects 1 | . . 1 . . . . Interference 1 | . . 1 . . . . Siege Activations . | . . . . . . . Robots Corrupted . | . . . . . . . Combat Hostiles . | . . . . . . . Parts Fried 43 | . . . . 23 2 18 Impact Corruptions 87 | . . . . 51 5 31 Robots Melted 1 | . . . . . . 1 Combat Hostiles . | . . . . . . . Parts Melted 3 | . 2 1 . . . . Heat Transferred 2468 | . 518 1332 . 50 . 568 Parts Sabotaged . | . . . . . . . Parts Stolen . | . . . . . . . Parts Stripped . | . . . . . . . Power Chain Reactions 2 | . . . . 2 . . Alert | -11 -10 -9 -9 -8 -7 -6 ------- Run | Yrd Mat Mat Min Mat Fac Fac Peak Influence 809 | 10 113 416 253 809 396 610 Initial 329 | . 6 47 118 22 329 140 Average 306 | 2 45 256 140 425 321 320 Maximum Alert Level 3 | . . 2 1 3 1 2 Low Security (%) 25 | 100 100 18 67 12 . 16 Level 1 51 | . . 81 32 37 99 59 Level 2 19 | . . . . 40 . 24 Level 3 3 | . . . . 10 . . Level 4 . | . . . . . . . Level 5 . | . . . . . . . High Security . | . . . . . . . Max Security . | . . . . . . . Squads Dispatched 17 | . . 2 . 7 2 6 Investigation 4 | . . . . 2 1 1 Extermination 2 | . . . . . . 2 Reinforcement 9 | . . 2 . 4 1 2 Assault 1 | . . . . . . 1 Garrison 1 | . . . . 1 . . Intercept . | . . . . . . . Searches Triggered . | . . . . . . . Construction Impeded . | . . . . . . . Haulers Reinforced 1 | . . . . . . 1 Active Scanning Responses . | . . . . . . . Cargo Convoy Interrupts . | . . . . . . . Stealth | -11 -10 -9 -9 -8 -7 -6 --------- Run | Yrd Mat Mat Min Mat Fac Fac Distress Signals 7 | . . 2 . 1 2 2 Communications Jammed 1 | . . . . . . 1 Distress Signals 1 | . . . . . . 1 Times Spotted 139 | . 5 26 10 54 6 38 Peak Tracking Total 8 | . 3 5 3 7 3 8 Tactical Retreats 17 | . . . 1 12 1 3 Traps | -11 -10 -9 -9 -8 -7 -6 ------- Run | Yrd Mat Mat Min Mat Fac Fac Traps Triggered 3 | . . . . 1 1 1 Indirectly . | . . . . . . . Trap Hack Attempts . | . . . . . . . Triggered . | . . . . . . . Disarmed . | . . . . . . . Reprogrammed . | . . . . . . . Reused . | . . . . . . . Traps Extracted . | . . . . . . . Installed . | . . . . . . . Triggered 1 | . . . . 1 . . Machines | -11 -10 -9 -9 -8 -7 -6 ---------- Run | Yrd Mat Mat Min Mat Fac Fac Machines Disabled 15 | . . 2 1 5 . 7 Max in Single Turn 4 | . . 1 1 2 . 4 Garrison Access 1 | . . . . 1 . . Machines Repaired . | . . . . . . . Machines Dismantled . | . . . . . . . Machines Sabotaged . | . . . . . . . Overloaded Fab Kills . | . . . . . . . Hacking | -11 -10 -9 -9 -8 -7 -6 --------- Run | Yrd Mat Mat Min Mat Fac Fac Machines Accessed 25 | . 4 2 . 7 7 5 Terminals 9 | . 3 1 . 3 2 . Fabricators 2 | . . . . . . 2 Repair Stations 2 | . . . . . 1 1 Recycling Units 5 | . 1 1 . 1 2 . Scanalyzers 6 | . . . . 2 2 2 Garrison Access 1 | . . . . 1 . . Total Hacks 73 | . 5 5 . 32 12 19 Successful 48 | . 2 3 . 25 4 14 Failed 25 | . 3 2 . 7 8 5 Catastrophic 7 | . 1 1 . 3 2 . Database Lockouts . | . . . . . . . Manual 13 | . 2 5 . 5 1 . Terminals 15 | . 4 2 . 6 3 . Fabricators 5 | . . . . . . 5 Repair Stations 10 | . . . . . 1 9 Recycling Units 10 | . 1 3 . 3 3 . Scanalyzers 32 | . . . . 22 5 5 Garrison Access 1 | . . . . 1 . . Terminal Hacks 2 | . . . . 1 1 . Part Schematic 1 | . . . . 1 . . Locate Traps 1 | . . . . . 1 . Fabricator Hacks 3 | . . . . . . 3 Load Schematic 2 | . . . . . . 2 Build 1 | . . . . . . 1 Repair Station Hacks 8 | . . . . . . 8 Scan Component 4 | . . . . . . 4 Repair 4 | . . . . . . 4 Recycling Unit Hacks 6 | . 1 1 . 2 2 . Report Inventory 5 | . 1 1 . 1 2 . Retrieve Components 1 | . . . . 1 . . Scanalyzer 24 | . . . . 20 1 3 Insert Component 12 | . . . . 9 1 2 Analyze 12 | . . . . 11 . 1 Garrison Access Hacks 1 | . . . . 1 . . Seal Access 1 | . . . . 1 . . Unauthorized Hacks 4 | . 1 2 . 1 . . Terminals 3 | . 1 1 . 1 . . Track 3 | . 1 1 . 1 . . Fabricators . | . . . . . . . Repair Stations . | . . . . . . . Recycling Units 1 | . . 1 . . . . Mask 1 | . . 1 . . . . Scanalyzers . | . . . . . . . Garrison Access . | . . . . . . . Data Cores Recovered . | . . . . . . . Used . | . . . . . . . Hacking Detections 21 | . 4 2 . 6 5 4 Full Trace Events 4 | . . . . 2 1 1 Feedback Events . | . . . . . . . Feedback Blocked . | . . . . . . . Robot Schematics Acquired . | . . . . . . . Robots Built . | . . . . . . . Authchips . | . . . . . . . Time . | . . . . . . . Total Robot Build Rating . | . . . . . . . Part Schematics Acquired 11 | . . . . 10 . 1 Parts Built 2 | . . . . . . 2 Authchips . | . . . . . . . Time 36 | . . . . . . 36 Total Part Build Rating 6 | . . . . . . 6 Parts Repaired 4 | . . . . . . 4 Time 140 | . . . . . . 140 Parts Recycled . | . . . . . . . Recycled Matter . | . . . . . . . Retrieved Matter . | . . . . . . . Retrieved Components 9 | . . . . 9 . . Parts Scanalyzed 12 | . . . . 9 1 2 Part Schematics Acquired 10 | . . . . 9 . 1 Parts Damaged 2 | . . . . 1 . 1 Bothacking | -11 -10 -9 -9 -8 -7 -6 ------------ Run | Yrd Mat Mat Min Mat Fac Fac Used RIF Installer . | . . . . . . . Robots Hacked . | . . . . . . . Non-combat . | . . . . . . . Combat . | . . . . . . . Robot Hacks Applied . | . . . . . . . Relay Couplers Released . | . . . . . . . Fabnet Peak Effective % . | . . . . . . . Robots Rewired . | . . . . . . . Allies Hacked . | . . . . . . . Hacks Repelled . | . . . . . . . Allies | -11 -10 -9 -9 -8 -7 -6 -------- Run | Yrd Mat Mat Min Mat Fac Fac Total Allies 3 | . . . 3 . . . Largest Group 3 | . . . 3 3 . . Highest-Rated Group 40 | . . . 40 37 . . Highest-Rated Ally 16 | . . . 16 16 . . Total Orders . | . . . . . . . Ally Attacks 43 | . . . 29 14 . . Total Damage 363 | . . . 192 171 . . Kills 6 | . . . 3 3 . . Allies Corrupted . | . . . . . . . Allies Melted . | . . . . . . . Intel | -11 -10 -9 -9 -8 -7 -6 ------- Run | Yrd Mat Mat Min Mat Fac Fac Robot Analysis Total . | . . . . . . . Derelict Logs Recovered 1 | . . . 1 . . . Drone Launches . | . . . . . . . Drone Recoveries . | . . . . . . . Exploration | -11 -10 -9 -9 -8 -7 -6 ------------- Run | Yrd Mat Mat Min Mat Fac Fac Turns Passed 5219 | 83 281 557 610 1693 584 1411 Spaces Moved 2808 | 46 222 295 492 867 302 584 Core 11 | 10 . . . . . 1 Treads 1076 | . . . . 356 302 418 Legs . | . . . . . . . Wheels 1721 | 36 222 295 492 511 . 165 Hover . | . . . . . . . Flight . | . . . . . . . Fastest Speed 50 | 50 100 100 95 83 166 86 Average Speed 126 | 89 100 106 97 124 168 155 Slowest Speed 600 | 100 100 115 100 250 250 600 Overloaded Moves . | . . . . . . . Propulsion Burnouts . | . . . . . . . Robots Hopped . | . . . . . . . Cave-ins Triggered . | . . . . . . . Exploration Rate (%) 37 | 4 44 32 87 72 9 12 Regions Visited 6 Branch Regions 1 Pre-discovered Areas . | . . . . . . . Known Exits Taken . | . . . . . . . Unknown Exits Taken 6 | 1 1 1 1 1 1 . Scrap Searched 1 | . . . 1 . . . Spaces Dug 15 | . . . . 5 4 6 Terrain Destroyed 112 | . . . . 42 4 66 Melee 14 | . . . . 5 4 5 Projectile 20 | . . . . . . 20 AOE 78 | . . . . 37 . 41 Terrain Rammed . | . . . . . . . Walls Destroyed . | . . . . . . . Machines Disabled . | . . . . . . . Actions | -11 -10 -9 -9 -8 -7 -6 --------- Run | Yrd Mat Mat Min Mat Fac Fac Total 3782 | 74 258 426 557 1225 349 893 Wait 285 | 3 12 26 18 105 10 111 Move 2802 | 45 221 294 491 866 301 584 Hop . | . . . . . . . Pick Up 101 | 12 8 12 5 26 6 32 Fast Attach 45 | 1 . 7 1 19 5 12 Attach 39 | 6 1 3 . 10 2 17 Detach 3 | . . . . 2 . 1 Swap 37 | . 1 10 3 15 3 5 Drop 79 | . 3 13 6 35 6 16 Fire 211 | 7 12 61 33 51 1 46 Melee 172 | . . . . 96 15 61 Ram . | . . . . . . . Kick . | . . . . . . . Crush . | . . . . . . . Escape Stasis 8 | . . . . . . 8 Rewire . | . . . . . . . Trap . | . . . . . . . Miscellaneous . | . . . . . . . Route ------- -11/Scrapyard -10/Materials (discovered 2 exits: *Mat / [*Min]) -9/Materials -9/Mines (discovered 2 exits: *Mat x2) -8/Materials (discovered 2 exits: *Fac x2) -7/Factory -6/Factory History --------- Turn | Location | Event 25 | -11/Scrapyard | Discovered new exit (range 14) 84 | -11/Scrapyard | Entered Materials 154 | -10/Materials | Discovered new exit (range 9) 264 | -10/Materials | Discovered new exit (range 14) 317 | -10/Materials | Build established: Mutant 365 | -10/Materials | Entered another Materials area 365 | -9/Materials | Evolved 2 slots: Utility x2 496 | -9/Materials | Destroyed 7 combat bots 907 | -9/Materials | Discovered new exit (range 12) 922 | -9/Materials | Entered Mines 982 | -9/Mines | Build established: Scavenger-Mutant 1039 | -9/Mines | A weapon hastily lodged in a ceiling crevice suddenly fell to the ground 1144 | -9/Mines | Assembled infested the area 1162 | -9/Mines | Assisted by bots powering up and referring to "LRC-V3" 1163 | -9/Mines | Learned Materials non-interactive machine intel 1346 | -9/Mines | Received a Rocket Launcher from a helpful Derelict 1462 | -9/Mines | Discovered new exit (range 5) 1516 | -9/Mines | Discovered new exit (range 10) 1532 | -9/Mines | Entered Materials 1532 | -8/Materials | Accompanied by 3 allies 1532 | -8/Materials | Evolved 2 slots: Propulsion x1, Utility x1 1533 | -8/Materials | Loaded intel: 35 non-interactive machine locations 1586 | -8/Materials | Garrison activated, responded to threat 1635 | -8/Materials | Lost 3 allies 1645 | -8/Materials | Lost 3 parts (2n1u) 1937 | -8/Materials | Lost 3 parts (1p1n1u) 2291 | -8/Materials | Discovered new exit (range 16) 2678 | -8/Materials | Build established: Gladiator 2915 | -8/Materials | Core integrity fell below 50% 3120 | -8/Materials | System corruption reached 10% 3203 | -8/Materials | Discovered new exit (range 6) 3225 | -8/Materials | Entered Factory 3225 | -7/Factory | Evolved 2 slots: Utility x2 3780 | -7/Factory | Discovered new exit (range 7) 3809 | -7/Factory | Entered another Factory area 3809 | -6/Factory | Evolved 2 slots: Power x1, Utility x1 3830 | -6/Factory | Build established: Scavenger-Gladiator 3877 | -6/Factory | Fabricated Arm. Treads (x2) 4197 | -6/Factory | Build established: Gladiator 4343 | -6/Factory | Repaired Lrg. Storage Unit 4411 | -6/Factory | Repaired Arm. Treads 4451 | -6/Factory | Repaired Arm. Treads? 4523 | -6/Factory | Repaired Hrd. Medium Armor Plating? 4842 | -6/Factory | Core integrity fell below 50% 4852 | -6/Factory | Core integrity fell below 20% 4889 | -6/Factory | Lost 12 parts (2p2n6u2w) 5199 | -6/Factory | Build established: Scavenger-Mutant 5209 | -6/Factory | First assault squad dispatched 5220 | -6/Factory | Destroyed by H-66 Slayer with Heavy Assault Rifle Last Messages --------------- 05204_ Penetrated by Slug. 05206_ System corrupted: Matter fused (-6). 05207_ Penetrated by Slug. 05207_ Wheel destroyed. 05208_ H-66 Slayer destroyed. 05208_ H-66 Slayer knocked back. 05208_ K-01 Serf collects debris. 05208_ Penetrated by Slug. 05209_ ALERT: Significant disruption in Zone 4P, assault force dispatched. 05211_ Penetrated by Slug. 05212_ K-01 Serf collects debris. 05214_ H-66 Slayer Gauss Rifle blasted off. 05214_ Penetrated by Slug. 05214_ Reflective Plating destroyed. 05214_ Angular Momentum Engine destroyed. 05216_ K-01 Serf collects debris. 05217_ Penetrated by Slug. 05217_ Magnetic Acceleration Cannon destroyed. 05220_ K-01 Serf collects debris. 05220_ Penetrated by Slug. Map ----- +----------------------------------------------------+ | ########????" " [ %[ "#?????? | | #????????????# ] # "" !|#??????? | | #????????????# "Y = # "" ! #??????? | | #????????????# """ +% =* #??????? | | "" [[####?????????# #%%=% =####### | | "" [ ## ########### #[! | | "" %#% # ########=% [=######## | | " """" # % #????#% [ % !=%##?????? | | ######## """" # !=%=#????# # = = [!##?????? | | ??###??# [ """" #[[[= ##############+# #?????? | | ???????# """" #[% % # %% % %%%%!%#?????? | | ???????# """" +k[= + """% """#?????? | | ???????# """" # ! # """! % """#?????? | | ???????# #!!! # """ == "#?????? | | ???????# #!%!! # % = "F"#?????? | | ???????# """ #!!% # """ """#?????? | | ???????# """S"" # ! # """ #?????? | | ???????# """""" # % # """ #?????? | | ???????############## # #?????? | | ????????????????????# ######## #########?????? | | ????????????????????#% ###########????????????? | | ??????????????????### ![% # #????????????? | | ??????????????????# ; *%% # = #????????????? | | ???????????????????#;^[h!^; == """ #????????????? | | ???????????????????##= % ; **= """ #????????????? | | ???????????????????#;== @/ """ #????????????? | | ???????????????????##%== # ] #????????????? | | ????????????????????#==* # [#????????????? | | ????????????????????#]= ; #????????????? | | ??????????????????? ###########????????????? | | ????????????????? #??????????????????????? | | ???????????????" " " #??????????????????????? | | ???????????????" """"" #??????????????????????? | | ??????????????"" """"" t #??????????????????????? | | ?????????????? #??????????????????????? | | ??????????????????? #??????????????????????? | | ???????????????????? #??????????????????????? | | ????????????????????"T"" *#??????????????????????? | | ????????????????????"""" #??????????????????????? | | ???????????????????????? #??????????????????????? | | ???????????????????????? ???????????????????????? | | ?????????????????????????????????????????????????? | | ?????????????????????????????????????????????????? | | ?????????????????????????????????????????????????? | | ?????????????????????????????????????????????????? | | ?????????????????????????????????????????????????? | | ?????????????????????????????????????????????????? | | ?????????????????????????????????????????????????? | | ?????????????????????????????????????????????????? | | ?????????????????????????????????????????????????? | +----------------------------------------------------+ Best States ------------- Heat Dissipation 56 Energy Generation 31 Energy Capacity 500 Matter Stores 300 Matter Capacity 300 Sight Range 16 Robot Scan Range 15 Terrain Scan Density 10 Jamming Range 12 Armor Coverage 375 Resistance: TH 10 Power Shielding 33 Propulsion Shielding 33 Utility Shielding 33 Evasion (%) 50 Melee Accuracy 10 Armor Integrity Analysis 30 Recoil Reduction 3 Offensive Hacking 12 Item Schematics ----------------- Weapon Shielding | -8/Materials | Hacked Arm. Wheel | -8/Materials | Scanalyzed Rnf. Deuterium Engine | -8/Materials | Scanalyzed Arm. Treads | -8/Materials | Scanalyzed EMP Blaster | -8/Materials | Scanalyzed Rocket Launcher | -8/Materials | Scanalyzed Imp. Signal Interpreter | -8/Materials | Scanalyzed Hvy. Mace | -8/Materials | Scanalyzed Adv. ECM Suite | -8/Materials | Scanalyzed Hcp. Matter Pod | -8/Materials | Scanalyzed Imp. Shield Generator | -6/Factory | Scanalyzed Robot Schematics ------------------ None Fabricated ------------ Arm. Treads | x2 | -6/Factory Alien Tech Used ----------------- None Achievements -------------- None Challenges ------------ None Game ------ Seed SignalSwarmFemtoactuators Manual? 0 Play Time 02:09:05 Cumulative 223.6 hours Start 2024.03.31 @ 21:50:35 End 2024.04.01 @ 00:06:32 Sessions 1 Manual Loads 0 Difficulty Rogue Special Mode None Game No. 101 Rogue 98 Adventurer 3 Explorer 0 Win Type - Total 0 Types 0/0/0/0/0/0/0/0/0 Lore% 28 Gallery% 52 Achievement% 35 Wizard Run 0 Options --------- Layout 0 ASCII 0 Keyboard 0 Movement Mouse Keybinds 0 Fullscreen 2 Font 18/SmallcapsGlow Map View 76x50 Zoom Use 0% Tactical HUD 1 Map Filters NONE Filters NONE Steam 1 RUN: 253d2797-3492-4f9f-a77e-0e2805b31c82